﻿ID;Nº Processo;Nº Empenho;Nº Liquidação;Nº Pagamento;Data;Unidade;Fonte;Função;SubFunção;Programa;Ação;Natureza;Credor;Valor;Historico
41487;202400000048;48;0;-;18/04/2024;MANUT. FUNDO ASSISTÊNCIA SOCIAL;Transferencias do FNAS;ASSISTÊNCIA SOCIAL;ASSISTÊNCIA COMUNITÁRIA;ASSISTÊNCIA AS COMUNIDADES;Promoção dos Serviços de Proteção Social Básico;Material De Expediente;LAVOR COMERCIAL DE EQUIPAMENTOS LTDA;1119.76;Ordem de pagamento emitido para ocorrer despesa com pagamento de material de expediente, para atender as necessidades do cras (centro de referencia de Assistência Social) de Bernardo Sayão-TO 2024. (nf:2225)
41486;202400000047;47;0;-;18/04/2024;MANUT. FUNDO ASSISTÊNCIA SOCIAL;RECURSOS PROPRIOS;ASSISTÊNCIA SOCIAL;ASSISTÊNCIA COMUNITÁRIA;ASSISTÊNCIA AS COMUNIDADES;Aprimoramento da Organização e Gestão do SUAS;Material De Limpeza E Produtos  De Higienizacao;LAVOR LAURIANO COMERCIO DE ALIMENTOS E EMBALAGENS;2226.77;Ordem de pagamento emitido para ocorrer despesa com pagamento de material de limpeza, para atender as necessidades da assistência Social de Bernardo Sayão-TO 2024. (nf:1962).
41490;202400000051;51;0;-;18/04/2024;MANUT. FUNDO ASSISTÊNCIA SOCIAL;Transferencias do FNAS;ASSISTÊNCIA SOCIAL;ASSISTÊNCIA COMUNITÁRIA;ASSISTÊNCIA AS COMUNIDADES;Promoção dos Serviços de Proteção Social Básico;Material De Limpeza E Produtos  De Higienizacao;LAVOR LAURIANO COMERCIO DE ALIMENTOS E EMBALAGENS;2964.36;Ordem de pagamento emitido para ocorrer despesa com pagamento de material de limpeza, para atender as necessidades do cras (centro de referencia de assistência Social) de Bernardo Sayão-TO 2024. (nf:1963).
41489;202400000050;50;0;-;18/04/2024;MANUT. FUNDO ASSISTÊNCIA SOCIAL;Transferencias do Estado para o FMAS;ASSISTÊNCIA SOCIAL;ASSISTÊNCIA COMUNITÁRIA;ASSISTÊNCIA AS COMUNIDADES;Aprimoramento dos Benefícios Eventuais;Outros Materiais De Distribuicao Gratuita;SUPERMECADO LOPES EIRELI;4095.00;Ordem de pagamento emitido para ocorrer despesa com pagamento de empresa para o fornecimento de cesta basica para distribuição gratuita conforme a lei N° 483/2020, para atender as demandas do fundo municipal de  Assistência Social,  Bernardo Sayão-TO 2024. (nf:10147)
41488;202400000049;49;0;-;17/04/2024;MANUT. FUNDO ASSISTÊNCIA SOCIAL;Transferencias do FNAS;ASSISTÊNCIA SOCIAL;ASSISTÊNCIA COMUNITÁRIA;ASSISTÊNCIA AS COMUNIDADES;Aprimoramento da Organização e Gestão do PBF/CADUNICO;Material De Expediente;LAVOR COMERCIAL DE EQUIPAMENTOS LTDA;373.50;Ordem de pagamento emitido para ocorrer despesa com pagamento de material de expediente, para atender as necessidades do PBF/Cadunico lotado do fundo municipal de Assistência Social de Bernardo Sayão-TO 2024. (nf:2226)
41467;202400000219;219;0;-;16/04/2024;SECRETARIA DE ADMINISTRAÇAO;RECURSOS PROPRIOS;ADMINISTRAÇÃO;ADMINISTRAÇÃO GERAL;Manutenção da Sec.de Transportes;Manutenção da Secretaria Municipal de Administração;Servicos De Publicidade Legal;IMPRENSA NACIONAL;194.60;Ordem de pagamento emitido para ocorrer despesa com aviso de  suspenção do pregão eletrônico 010/2024, Processo N° 0073/2024 por ser necessario realizar alterações/complementações no edital e seus anexos.
41469;202400000107;107;0;-;16/04/2024;FUNDO MUNICIPAL DE EDUCAÇÃO FME;FUNDEB 30%;EDUCAÇÃO;ENSINO FUNDAMENTAL;EDUCAÇÃO FUNDAMENTAL - FUNDEB;Manutenção do Ensino Fundamental - FUNDEB 30%;Material De Limpeza E Produtos  De Higienizacao;L F M ALBUQUERQUE;2332.50;Ordem de pagamento emitido para ocorrer despesa com aquisição de mateiais de limpeza para escolas e creche municipal deste município de Bernardo Sayão TO. Conforme ata de regisro de preço N 008//2023 e pregão eletrônico N 5/2023. (nf:895).
41480;202400000046;46;1536;-;16/04/2024;SECRETARIA DE ADMINISTRAÇAO;RECURSOS PROPRIOS;ADMINISTRAÇÃO;ADMINISTRAÇÃO GERAL;Manutenção da Sec.de Transportes;Manutenção da Secretaria Municipal de Administração;Outros Servicos De Terceiros Pessoa Juridica;OI S.A.;16.36;Ordem de pagamento emitido para ocorrer despesa com prestação de serviços de telecomunicação. Atendendo as necessidades do Fundo Municipal de Administração deste Municipio de Bernardo Sayão-TO. Claro S/A.
41455;202400000001;1;1532;-;15/04/2024;MANUT. FUNDO ASSISTÊNCIA SOCIAL;Transferencias do FNAS;ASSISTÊNCIA SOCIAL;ASSISTÊNCIA COMUNITÁRIA;ASSISTÊNCIA AS COMUNIDADES;Promoção dos Serviços de Proteção Social Básico;Servicos De Agua E Esgoto;AGENCIA TOCANTINENSE DE SANEAMENTO - ATS;108.60;Ordem de pagamento emitido para ocorrer despesa com tarifa de água para o prédio onde funciona o CRAS ( Centro de Referência de Assistência Social), durante o exercicio de 2024. Referente a Março
41456;202400000002;2;1520;-;15/04/2024;MANUT. FUNDO ASSISTÊNCIA SOCIAL;RECURSOS PROPRIOS;ASSISTÊNCIA SOCIAL;ASSISTÊNCIA COMUNITÁRIA;ASSISTÊNCIA AS COMUNIDADES;Aprimoramento da Organização e Gestão do SUAS;Servicos De Agua E Esgoto;AGENCIA TOCANTINENSE DE SANEAMENTO - ATS;108.60;Ordem de pagamento emitido  para ocorrer despesa com tarifa de água para a manutenção do prédio de Assistência Social de Bernardo Sayão-TO, Referente a Março de 2024.
41474;202400000210;210;0;-;15/04/2024;FUNDO MUNICIPAL DE SAÚDE;Transf de Rec do SUS - PAB Fixo;SAÚDE;SUPORTE PROFILÁTICO E TERAPÊUTICO;ASSISTÊNCIA INTEGRADA A SAÚDE;Bloco de Custeio Assistência Farmacêutica Básica;Material Hospitalar;APROMEDICA COM. MEDICAMENTO PRODUTOS HOSPITALARES;1439.08;Ordem de pagamento emitido para ocorrer despesa com aquisição de materiais hospitalares como pinça kelly, fio nylon e agulhas descartáveis. Para atender a demanda da farmácia básica do fundo municipal de Saúde de Bernardo Sayão-TO. (nf:3.191).
41473;202400000209;209;0;-;15/04/2024;FUNDO MUNICIPAL DE SAÚDE;Transf de Rec do SUS - PAB Fixo;SAÚDE;SUPORTE PROFILÁTICO E TERAPÊUTICO;ASSISTÊNCIA INTEGRADA A SAÚDE;Bloco de Custeio Assistência Farmacêutica Básica;Material Farmacologico;APROMEDICA COM. MEDICAMENTO PRODUTOS HOSPITALARES;540.00;Ordem de pagamento emitido para ocorrer despesa com aquisição de medicamento como sais para reidratação. Para atender a demanda da farmácia básica do fundo municipal de Saúde de Bernardo Sayão-TO. (nf:3.191).
41476;202400000212;212;0;-;15/04/2024;FUNDO MUNICIPAL DE SAÚDE;Transf de Rec do SUS - PAB Fixo;SAÚDE;SUPORTE PROFILÁTICO E TERAPÊUTICO;ASSISTÊNCIA INTEGRADA A SAÚDE;Bloco de Custeio Assistência Farmacêutica Básica;Material Hospitalar;APROMEDICA COM. MEDICAMENTO PRODUTOS HOSPITALARES;703.69;Ordem de pagamento emitido para ocorrer despesa com aquisição de material hospitalar como fralda geriátrica. Para atender a demanda da farmácia básica do fundo municipal de Saúde de Bernardo Sayão-TO. (nf:3.195).
41475;202400000211;211;0;-;15/04/2024;FUNDO MUNICIPAL DE SAÚDE;Transf de Rec do SUS - PAB Fixo;SAÚDE;SUPORTE PROFILÁTICO E TERAPÊUTICO;ASSISTÊNCIA INTEGRADA A SAÚDE;Bloco de Custeio Assistência Farmacêutica Básica;Material Farmacologico;APROMEDICA COM. MEDICAMENTO PRODUTOS HOSPITALARES;2513.10;Ordem de pagamento emitido para ocorrer despesa com aquisição de medicamento como ibuprofeno e sulfato ferroso. Para atender a demanda da farmácia básica do fundo municipal de Saúde de Bernardo Sayão-TO. (nf:3.193).
41461;202400000011;11;1518;-;15/04/2024;MANUT. FUNDO ASSISTÊNCIA SOCIAL;Transferencias do FNAS;ASSISTÊNCIA SOCIAL;ASSISTÊNCIA COMUNITÁRIA;ASSISTÊNCIA AS COMUNIDADES;Aprimoramento da Organização e Gestão do PBF/CADUNICO;Outros Servicos De Terceiros Pessoa Juridica;C. D. FERREIRA;125.00;Ordem de pagamento emitido para ocorrer despesa na prestação de serviços com fornecimento de Internet Fibra Óptica , para atender as necessidades do Cadastro Único, da Assistência Social de Bernardo Sayão/To. Durante o exercício de 2024. Referente a Março.
41462;202400000012;12;1530;-;15/04/2024;MANUT. FUNDO ASSISTÊNCIA SOCIAL;Transferencias do FNAS;ASSISTÊNCIA SOCIAL;ASSISTÊNCIA COMUNITÁRIA;ASSISTÊNCIA AS COMUNIDADES;Promoção dos Serviços de Proteção Social Básico;Outros Servicos De Terceiros Pessoa Juridica;C. D. FERREIRA;125.00;Ordem de pagamento emitido para ocorrer despesa na prestação de serviços com fornecimento de Internet Fibra Óptica , para atender as necessidades do CRAS, (Centro de referencia de Assistência Social) do Município de Bernardo Sayão/To. Durante o exercício de 2024. Referente a Março
41460;202400000009;9;1524;-;15/04/2024;MANUT. FUNDO ASSISTÊNCIA SOCIAL;Transferencias do FNAS;ASSISTÊNCIA SOCIAL;ASSISTÊNCIA COMUNITÁRIA;ASSISTÊNCIA AS COMUNIDADES;Promoção dos Serviços de Proteção Social Básico;Servicos De Energia Eletrica;ENERGISA TOCANTINS-DISTRIBUIDORA DE ENERGIA S.A.;386.98;Ordem de pagamento emitido para ocorrer despesa com serviços de energia elétrica para o prédio do cras (centro de referencia de Assistência Social) de Bernardo Sayão-TO, UC 8/542690-3. Durante o exercício de 2024. Referente a Abril de 2024.
41457;202400000003;3;1522;-;15/04/2024;MANUT. FUNDO ASSISTÊNCIA SOCIAL;RECURSOS PROPRIOS;ASSISTÊNCIA SOCIAL;ASSISTÊNCIA COMUNITÁRIA;ASSISTÊNCIA AS COMUNIDADES;Aprimoramento da Organização e Gestão do SUAS;Servicos De Energia Eletrica;ENERGISA TOCANTINS-DISTRIBUIDORA DE ENERGIA S.A.;989.24;Ordem de pagamento emitido para ocorrer despesa com serviço de energia elétrica para o prédio de Assistência Social de Bernardo Sayão-TO, UC 8/465592-4, durante o exercicio de 2024. Referente a Abril.
41459;202400000008;8;1528;-;15/04/2024;MANUT. FUNDO ASSISTÊNCIA SOCIAL;RECURSOS PROPRIOS;ASSISTÊNCIA SOCIAL;ASSISTÊNCIA COMUNITÁRIA;ASSISTÊNCIA AS COMUNIDADES;Aprimoramento da Organização e Gestão do SUAS;Outros Servicos De Terceiros Pessoa Juridica;OI S.A.;394.92;Ordem de pagamento emitida para ocorrer despesa com serviço de telecomunicação para o prédio de Assistência Social de Bernardo Sayão-TO, referente a Abril de 2024. (3422-1144).
41458;202400000007;7;1526;-;15/04/2024;MANUT. FUNDO ASSISTÊNCIA SOCIAL;Transferencias do FNAS;ASSISTÊNCIA SOCIAL;ASSISTÊNCIA COMUNITÁRIA;ASSISTÊNCIA AS COMUNIDADES;Promoção dos Serviços de Proteção Social Básico;Outros Servicos De Terceiros Pessoa Juridica;OI S.A.;127.53;Ordem de pagamento emitida  para ocorrer despesa com serviço de telecomunicação para o prédio onde funciona o CRAS (Centro de Referência da Assistência Social), referente a Abril de 2024. (3422-1133)
41483;202400000082;82;1534;-;15/04/2024;FUNDO MUNICIPAL DE SAÚDE;ASPS;SAÚDE;ATENÇÃO BÁSICA;ASSISTÊNCIA INTEGRADA A SAÚDE;Bloco de Custeio Atenção Básica;Outros Servicos De Terceiros Pessoa Juridica;RB ENGENHARIA E CONSULTORIA LTDA;3300.00;Ordem de pagamento emitido para ocorrer despesa com empresa para prestação de serviços de assessoria na parte financeira para elaboração e alimentação de instrumento de gestão em saúde conforme o sistema digisus, acompanhamento de convênio e atualização de políticas públicas, de acordo com contrato n° 35/2024. Atendendo a demanda do fundo municipal de saúde de Bernardo Sayão- To. Referente a março de 2024.
41470;202400000108;108;0;-;15/04/2024;FUNDO MUNICIPAL DE EDUCAÇÃO FME;FUNDEB 30%;EDUCAÇÃO;ENSINO FUNDAMENTAL;EDUCAÇÃO FUNDAMENTAL - FUNDEB;Manutenção do Ensino Fundamental - FUNDEB 30%;Material De Limpeza E Produtos  De Higienizacao;SUPERMECADO LOPES EIRELI;500.00;Ordem de pagamento emitido para ocorrer despesa com aquisição de produto de limpeza para as escolas e creche municipal deste município de Bernardo Sayão TO. Conforme ata de regisro de preço N 008//2023 e pregão eletrônico N 5/2023. (nf:10145).
41464;202400000046;46;0;-;12/04/2024;MANUT. FUNDO ASSISTÊNCIA SOCIAL;Transferencias do FNAS;ASSISTÊNCIA SOCIAL;ASSISTÊNCIA COMUNITÁRIA;ASSISTÊNCIA AS COMUNIDADES;Promoção dos Serviços de Proteção Social Básico;Material De Expediente;E. F. FERREIRA ME;2582.04;Ordem de pagamento emitida para ocorrer despesa na aquisição de materiais de expediente diversos destinados a atender as necessidades so CRAS, do Município de Bernardo Sayão/To NF 9523
41463;202400000045;45;0;-;12/04/2024;MANUT. FUNDO ASSISTÊNCIA SOCIAL;Transferencias do FNAS;ASSISTÊNCIA SOCIAL;ASSISTÊNCIA COMUNITÁRIA;ASSISTÊNCIA AS COMUNIDADES;Aprimoramento da Organização e Gestão do PBF/CADUNICO;Material De Expediente;E. F. FERREIRA ME;613.50;Ordem de pagamento emitida para ocorrer despesa na aquisição de materiais de expediente diversos destinados a atender as necessidades so PBF/ CADUNICO, do Município de Bernardo Sayão/To
41433;202400000018;18;1514;-;12/04/2024;SECRETARIA DE FINANÇAS;RECURSOS PROPRIOS;ADMINISTRAÇÃO;ADMINISTRAÇÃO FINANCEIRA;Administração Financeira;Manutenção de Sec. Mun. de Finanças;Outros Servicos De Terceiros Pessoa Juridica;OI S.A.;490.87;Ordem de pagamento emitido para ocorrer despesa com prestação de serviços de telecomunicação, para o exercício de 2024, para a secretaria Municipal de Finanças de Bernardo Sayão-TO. Referente a abril de 2024. (3422 1122).
41432;202400000044;44;0;-;11/04/2024;MANUT. FUNDO ASSISTÊNCIA SOCIAL;Transferencias do FNAS;ASSISTÊNCIA SOCIAL;ASSISTÊNCIA COMUNITÁRIA;ASSISTÊNCIA AS COMUNIDADES;Promoção dos Serviços de Proteção Social Básico;Generos De Alimentacao;L F M ALBUQUERQUE;5102.65;Ordem de pagamento emitido para ocorrer despesa com pagamento de empresa para aquisição de generos alimenticios para atender as demandas do  Cras (centro de referencia de Assistência Social), Bernardo Sayão-TO 2024. (nf:876)
41429;202400000043;43;0;-;11/04/2024;MANUT. FUNDO ASSISTÊNCIA SOCIAL;RECURSOS PROPRIOS;ASSISTÊNCIA SOCIAL;ASSISTÊNCIA COMUNITÁRIA;ASSISTÊNCIA AS COMUNIDADES;Aprimoramento da Organização e Gestão do SUAS;Generos De Alimentacao;L F M ALBUQUERQUE;400.00;Ordem de pagamento emitido para ocorrer despesa com pagamento de empresa para aquisição de generos alimenticios para atender as demandas do fundo Municipal de Assistência Social, Bernardo Sayão-TO 2024. (nf:877)
41430;202400000007;7;1469;-;11/04/2024;FUNDO MUNICIPAL DE EDUCAÇÃO FME;Transferências do Salário-Educação;EDUCAÇÃO;ENSINO FUNDAMENTAL;EDUCAÇÃO FUNDAMENTAL,  INFANTIL E MÉDIO;Manutenção do Ensino Fundamental;Outros Servicos De Terceiros Pessoa Juridica;OI S.A.;565.57;Ordem de pagamento emitido  para ocorrer despesa com pagamento de faturas telefónicas da Escola Criança Feliz e CMI,  Centro Municipal de Educação Infantil deste município de Bernardo Sayão TO. - (63)3422-1205 e 3422-1188, durante o ano de 2024. Referente a março de 2024.
41431;202400000010;10;1480;-;10/04/2024;MANUT. FUNDO ASSISTÊNCIA SOCIAL;Transferencias do Estado para o FMAS;ASSISTÊNCIA SOCIAL;ASSISTÊNCIA COMUNITÁRIA;ASSISTÊNCIA AS COMUNIDADES;Aprimoramento dos Benefícios Eventuais;Outros Materiais De Distribuicao Gratuita;DACIO MELO NASCIMENTO & CIA LTDA.;1228.00;Ordem de pagamento emitido para ocorrer despesa com contratação de empresa, especializada no fornecimento de urnas funerárias, bem como os serviços de auxilio funeral e translado do corpo, em atendimento as demandas do Fundo Municipal de Assisstência Social de Bernardo Sayão no exercício de 2024.
41420;202400000010;10;1478;-;10/04/2024;MANUT. FUNDO ASSISTÊNCIA SOCIAL;Transferencias do Estado para o FMAS;ASSISTÊNCIA SOCIAL;ASSISTÊNCIA COMUNITÁRIA;ASSISTÊNCIA AS COMUNIDADES;Aprimoramento dos Benefícios Eventuais;Outros Materiais De Distribuicao Gratuita;DACIO MELO NASCIMENTO & CIA LTDA.;960.00;Ordem de pagamento emitido para ocorrer despesa com contratação de empresa, especializada no fornecimento de urnas funerárias, bem como os serviços de auxilio funeral e translado do corpo, em atendimento as demandas do Fundo Municipal de Assisstência Social de Bernardo Sayão no exercício de 2024.
41452;202400000203;203;0;-;10/04/2024;FUNDO MUNICIPAL DE SAÚDE;Transf de Rec do SUS - PAB Fixo;SAÚDE;ATENÇÃO BÁSICA;ASSISTÊNCIA INTEGRADA A SAÚDE;Bloco de Custeio Atenção Básica;Material De Expediente;DISTRIBUIDORA MSI EIRELI;4658.73;Ordem de pagamento emitido para ocorrer despesa com aquisição de materiais de consumo de expediente como clipes, canetas e envelopes. Para atender a demanda do fundo Municipal de Saúde de Bernardo Sayão-TO. (nf:3.235).
41453;202400000204;204;0;-;10/04/2024;FUNDO MUNICIPAL DE SAÚDE;Transf de Rec do SUS - PAB Fixo;SAÚDE;ATENÇÃO BÁSICA;ASSISTÊNCIA INTEGRADA A SAÚDE;Bloco de Custeio Atenção Básica;Material De Limpeza E Produtos  De Higienizacao;DISTRIBUIDORA MSI EIRELI;3567.14;Ordem de pagamento emitido para ocorrer despesa com aquisição de materiais de consumo de limpeza como desinfetante, álcool em gel e sacos de lixo. Para atender a demanda do fundo Municipal de Saúde de Bernardo Sayão-TO. (nf:3.236).
41484;202400000213;213;0;-;10/04/2024;FUNDO MUNICIPAL DE SAÚDE;Transf de Rec do SUS - PAB Fixo;SAÚDE;SUPORTE PROFILÁTICO E TERAPÊUTICO;ASSISTÊNCIA INTEGRADA A SAÚDE;Bloco de Custeio Assistência Farmacêutica Básica;Material Hospitalar;DISTRIMIX DISTRIBUIDORA DE MEDICAMENTOS LTDA;193.50;Ordem de pagamento emitido para ocorrer despesa para aquisição de medicamentos como maleato de enalapril. Para atender a demanda do Fundo Municipal de Saúde deste Municipio de Bernardo Sayão-TO. Nfe:(83107).
41419;202400000202;202;0;-;10/04/2024;FUNDO MUNICIPAL DE SAÚDE;ASPS;SAÚDE;ATENÇÃO BÁSICA;ASSISTÊNCIA INTEGRADA A SAÚDE;Bloco de Custeio Atenção Básica;Outros Servicos De Terceiros Pessoa Juridica;EDMILSON PEREIRA DA SILVA;1940.00;Ordem de pagamento emitido para ocorrer despesa com prestação de serviço para manutenção e reparos na unidade básica de saúde  de Bernardo Sayão em mesas e porta iluminada. Atendendo a demanda do fundo municipal de saúde de Bernardo Sayão-TO. (nf:108)
41418;202400000201;201;0;-;10/04/2024;FUNDO MUNICIPAL DE SAÚDE;ASPS;SAÚDE;ATENÇÃO BÁSICA;ASSISTÊNCIA INTEGRADA A SAÚDE;Bloco de Custeio Atenção Básica;Outros Servicos De Terceiros Pessoa Juridica;EDMILSON PEREIRA DA SILVA;4200.00;Ordem de pagamento emitido para ocorrer despesa com prestação de serviço em reforma de armário na unidade básica de saúde e repartimento da sala dos agentes de saúde. Atendendo a demanda do fundo municipal de saúde de Bernardo Sayão-TO. (nf:55)
41472;202400000208;208;0;-;10/04/2024;FUNDO MUNICIPAL DE SAÚDE;Transf de Rec do SUS - PAB Fixo;SAÚDE;SUPORTE PROFILÁTICO E TERAPÊUTICO;ASSISTÊNCIA INTEGRADA A SAÚDE;Bloco de Custeio Assistência Farmacêutica Básica;Material Farmacologico;PROFARM- COM. ATAC DE PROD. FARMAC. LTDA;3393.50;Ordem de pagamento emitido para ocorrer despesa para aquisição de medicamentos como secnidazol, ambroxol e cetoconazol. Para atender a demanda da farmácia básica do Fundo Municipal de Saúde deste Municipio de Bernardo Sayão-TO. Nfe: (nf:137.886).
41471;202400000207;207;0;-;10/04/2024;FUNDO MUNICIPAL DE SAÚDE;Transf de Rec do SUS - PAB Fixo;SAÚDE;SUPORTE PROFILÁTICO E TERAPÊUTICO;ASSISTÊNCIA INTEGRADA A SAÚDE;Bloco de Custeio Assistência Farmacêutica Básica;Material Hospitalar;PROFARM- COM. ATAC DE PROD. FARMAC. LTDA;454.90;Ordem de pagamento emitido para ocorrer despesa para aquisição de material hospitalar como papel grau. Pata atender a demanda da farmácia básica do Fundo Municipal de Saúde deste Municipio de Bernardo Sayão-TO. Nfe: (nf:137.886).
41485;202400000214;214;0;-;09/04/2024;FUNDO MUNICIPAL DE SAÚDE;Transf de Rec do SUS - PAB Fixo;SAÚDE;SUPORTE PROFILÁTICO E TERAPÊUTICO;ASSISTÊNCIA INTEGRADA A SAÚDE;Bloco de Custeio Assistência Farmacêutica Básica;Material Farmacologico;DISTRIMIX DISTRIBUIDORA DE MEDICAMENTOS LTDA;1110.14;Ordem de pagamento emitido para ocorrer despesa para aquisição de medicamentos como cloridrato de metformina, enalapril e dexametasona. Para atender a demanda do Fundo Municipal de Saúde deste Municipio de Bernardo Sayão-TO. Nfe:(83037).
41426;202400000040;40;0;-;09/04/2024;MANUT. FUNDO ASSISTÊNCIA SOCIAL;Transferencias do FNAS;ASSISTÊNCIA SOCIAL;ASSISTÊNCIA COMUNITÁRIA;ASSISTÊNCIA AS COMUNIDADES;Promoção dos Serviços de Proteção Social Básico;Outros Servicos De Terceiros Pessoa Juridica;H K BARBOSA COMER. E SERVIÇOS AUTOMOTIVOS;1322.50;Ordem de pagamento emitido para ocorrer despesa com pagamento de prestação de serviços de manutenção de ar condicionado serviços de diagnosticos computadorizado, serviço de funilaria e pintura dos veiculos e frotas, para demanda do cras (centro de referencia de assistência social), Bernardo Sayão-TO. (nf:362).
41428;202400000042;42;0;-;09/04/2024;MANUT. FUNDO ASSISTÊNCIA SOCIAL;Transferencias do FNAS;ASSISTÊNCIA SOCIAL;ASSISTÊNCIA COMUNITÁRIA;ASSISTÊNCIA AS COMUNIDADES;Aprimoramento da Organização e Gestão do PBF/CADUNICO;Material De Expediente;SUPERMECADO LOPES EIRELI;600.98;Ordem de pagamento emitido para ocorrer despesa com pagamento de material de expediente para atender o aprimoramento da organização e gestão do PBF/CADUNICO, lotado na Assistência Social de Bernardo Sayão-TO 2024. (nf:10103).
41427;202400000041;41;0;-;09/04/2024;MANUT. FUNDO ASSISTÊNCIA SOCIAL;Transferencias do FNAS;ASSISTÊNCIA SOCIAL;ASSISTÊNCIA COMUNITÁRIA;ASSISTÊNCIA AS COMUNIDADES;Fortalecimento do CMAS;Material De Expediente;SUPERMECADO LOPES EIRELI;270.00;Ordem de pagamento emitido para ocorrer despesa com pagamento de material de expediente para atender o  fortalecimento do CMAS lotado na Assistência Social  de Bernardo Sayão-TO 2024. (nf:10104).
41425;202400000039;39;0;-;09/04/2024;MANUT. FUNDO ASSISTÊNCIA SOCIAL;Transferencias do FNAS;ASSISTÊNCIA SOCIAL;ASSISTÊNCIA COMUNITÁRIA;ASSISTÊNCIA AS COMUNIDADES;Promoção dos Serviços de Proteção Social Básico;Material De Expediente;SUPERMECADO LOPES EIRELI;330.98;Ordem de pagamento emitido para ocorrer despesa com pagamento de material de expediente para atender o cras (centro de referencia de assitencia social), lotado na Assistência Social de Bernardo Sayão-TO 2024. (nf:10102).
41417;202400000200;200;0;-;08/04/2024;FUNDO MUNICIPAL DE SAÚDE;ASPS;SAÚDE;ATENÇÃO BÁSICA;ASSISTÊNCIA INTEGRADA A SAÚDE;Bloco de Custeio Atenção Básica;Outros Servicos De Terceiros Pessoa Juridica;PEDRO FERREIRA SILVA NETO;650.00;Ordem de pagamento emitido para ocorrer despesa com prestação de serviço na lavagem de veículos: Ambulância S-10 placa: RSD0I06, Van placa: QWD6F39, L-200 Triton placa: QWC7367, L-200 TRITON placa: QKM1934 e moto honda placa: MWJ1084. Atendendo as necessidades do fundo municipal de saúde de Bernardo Sayão-TO. (nf:47).
41416;202400000199;199;0;-;08/04/2024;FUNDO MUNICIPAL DE SAÚDE;ASPS;SAÚDE;ATENÇÃO BÁSICA;ASSISTÊNCIA INTEGRADA A SAÚDE;Bloco de Custeio Atenção Básica;Outros Servicos De Terceiros Pessoa Juridica;PEDRO FERREIRA SILVA NETO;750.00;Ordem de pagamento emitido para ocorrer despesa com prestação de serviço na lavagem de veículos: Ambulância strada placa: RBN4F57, Ambulância S-10 placa: QKE3618, Sandero placa: QKG5J21 e Ambulância Kangoo placa: OLN2769. Atendendo as necessidades do fundo municipal de saúde de Bernardo Sayão-TO. (nf:46).
41358;202400000038;38;0;-;08/04/2024;MANUT. FUNDO ASSISTÊNCIA SOCIAL;Transferencias do FNAS;ASSISTÊNCIA SOCIAL;ASSISTÊNCIA COMUNITÁRIA;ASSISTÊNCIA AS COMUNIDADES;Aprimoramento da Organização e Gestão do PBF/CADUNICO;Gasolina;SOUSA & LOPES COMERCIO DE COMBUSTIVEIS LTDA;1007.86;Ordem de pagamento emitido para ocorrer despesas com pagamento de empresa para fornacimento de conbustível para abastecimento da frotas do PBF/CADUNICO, foram realizadas as visitas domiciliar nas vilas, da familias beneficiarios do programa bolsa familia do município de Bernardo Sayão-TO 2024. (nf:10162)
41454;202400000205;205;0;-;07/04/2024;FUNDO MUNICIPAL DE SAÚDE;ASPS;SAÚDE;ATENÇÃO BÁSICA;ASSISTÊNCIA INTEGRADA A SAÚDE;Bloco de Custeio Atenção Básica;Auxilio A Pessoas Fisicas;JOÃO GABRIEL LUCENA DA SILVA;390.00;Ordem de pagamento emitido para ocorrer despesa com valor que se empenha referente a pagamento de alimentação, aos pacientes que realiza tratamento contínuo por tempo indeterminado de hemodiálise, sessão 03 vezes por semana fora do domicilio na clínica renal center na cidade de Araguaína-TO. Referente o mês de março de 2024.
41398;202400000209;209;0;-;05/04/2024;CULTURA;RECURSOS PROPRIOS;URBANISMO;SERVIÇOS URBANOS;VIAS, PRAÇAS, JARDINS, SERV. URB. TRANSP E ESTR. VIC;Manutenção da Secretaria Municipal de Habitação, Infraestrutura e Obras;Material Para  Manutencao De Bens Moveis;TRACTORGYN EQUIPAMENTOS E PEÇAS LTDA;13790.07;Ordem de pagamento emitida para ocorrer despesa na aquisição de peças diversas para Motoniveladora SANY, modelo STG 190C-8 Chassi PY5219CB0688, utilizadas em manutenção preventiva de revisão de 1000 Hrs. NF- 30928
41253;202400000043;43;1293;-;04/04/2024;FUNDO MUNICIPAL DE SAÚDE;ASPS;SAÚDE;ATENÇÃO BÁSICA;ASSISTÊNCIA INTEGRADA A SAÚDE;Bloco de Custeio Atenção Básica;Serviços Laboratóriais;GALAC ATUAL LABORATÓRIO DE ANALISES CLINICAS LTDA;26459.00;Ordem de pagamento enitido para ocorrer despesa com Reempenho do Empenho de nº 238, do ano de 2023 e contrato 76 emitido para ocorrer despesa com contratação de empresa especializada em serviços de exames laboratoriais, visando o atendimento da população do Município de Bernardo Sayão-TO. Referente a fevereiro de 2024.
41479;202400000111;111;0;-;04/04/2024;FUNDO MUNICIPAL DE EDUCAÇÃO FME;Transf Diretas do FNDE - PNAE;EDUCAÇÃO;ALIMENTAÇÃO E NUTRIÇÃO;Programa da Primeira Infância;Garantia de Alimentação Escolar - Creche - Primeira Infância;Generos De Alimentacao;L F M ALBUQUERQUE;6172.32;Ordem de pagamento emitido para ocorrer despesa com aquisição de gêneros alimentícios para compor da merenda escolar no CMEI centro Mun. de Educação Infantil deste município de Bernardo Sayão TO, Conforme pregão eletrônico N° 002/2024 e contrato N° 0043/2024. (nf:828).
41478;202400000110;110;0;-;04/04/2024;FUNDO MUNICIPAL DE EDUCAÇÃO FME;Transf Diretas do FNDE - PNAE;EDUCAÇÃO;ALIMENTAÇÃO E NUTRIÇÃO;ALIMENTAÇÃO ESCOLAR;Manutenção da Merenda Escolar;Generos De Alimentacao;L F M ALBUQUERQUE;18052.53;Ordem de pagamento emitido para ocorrer despesa com aquisição de gêneros alimentícios para compor da merenda escolar nas escolas municipais deste município de Bernardo Sayão TO, Conforme pregão eletrônico N° 002/2024 e contrato N° 0043/2024. (nf:829).
41367;202400000105;105;0;-;04/04/2024;FUNDO MUNICIPAL DE EDUCAÇÃO FME;MDE;EDUCAÇÃO;ENSINO FUNDAMENTAL;EDUCAÇÃO FUNDAMENTAL,  INFANTIL E MÉDIO;Manutenção do Transporte Escolar;Combustiveis E Lubrif.Para  Outras Finalidades;SOUSA & LOPES COMERCIO DE COMBUSTIVEIS LTDA;1980.00;Ordem de pagamento emitido para ocorrer despesa com aquisição de  lubrificante para manutenção de veiculo do transporte escolar deste município de Bernardo sayão TO. Conforme contrato N° 023/2024 e inexibilidade de licitação N 003/2024. (nf:10224)
41256;202400000178;178;0;-;03/04/2024;FUNDO MUNICIPAL DE SAÚDE;ASPS;SAÚDE;ATENÇÃO BÁSICA;ASSISTÊNCIA INTEGRADA A SAÚDE;Bloco de Custeio Atenção Básica;Servicos Medicos;ALINE BEIRIGO MARTINS JACOME;2000.00;Ordem de pagamento emitido para ocorrer despesa com ajuda de custo concedida a servidora Médica Aline Beirigo Martins Jacome conforme portaria GM/MS Nº 3.193/2022 e termo de adesão e compromisso dos Municípios ao programa mais Médicos com atendimento ao programa de saúde da familia com carga horária de 40 horas semanais. Atendendo a demanda do fundo municipal de Saúde de Bernardo Sayão-TO.
41481;202400000221;221;0;-;03/04/2024;FUNDEB;RECURSOS PROPRIOS;GESTÃO AMBIENTAL;PRESERVAÇÃO  E CONSERVAÇÃO  AMBIENTAL;Proteção ao Meio Ambiente;Aquisição de Equip. e Materiais Permanente P/ a Secretaria de Meio Ambiente;Outros Materiais Permanentes;CRISTAL SUL POCOS ARTESIANOS LTDA;5945.21;Ordem de pagamento emitido para ocorrer despesa com aquisição de bomba para reposição em poço artesiano da vila União pertencente a este Município de Bernardo Sayão-TO. Conforme contrato N° 069/2024. (nf:131).
41313;202400000191;191;0;-;03/04/2024;FUNDO MUNICIPAL DE SAÚDE;ASPS;SAÚDE;ATENÇÃO BÁSICA;ASSISTÊNCIA INTEGRADA A SAÚDE;Bloco de Custeio Atenção Básica;Outros Servicos De Terceiros Pessoa Juridica;H K BARBOSA COMER. E SERVIÇOS AUTOMOTIVOS;3927.50;Ordem de pagamento emitido para ocorrer despesa com prestação de serviços em horas de serviços em manutenção e reparos na frota do fundo municipal de saúde veículo: Ambulância S-10 strada placa: RSD0I06, de acordo cpm pregão presencial N° 018/2023. Atendendo a demanda do fundo municipal de saúde deste município . (nf:360).
41312;202400000190;190;0;-;03/04/2024;FUNDO MUNICIPAL DE SAÚDE;ASPS;SAÚDE;ATENÇÃO BÁSICA;ASSISTÊNCIA INTEGRADA A SAÚDE;Bloco de Custeio Atenção Básica;Outros Servicos De Terceiros Pessoa Juridica;H K BARBOSA COMER. E SERVIÇOS AUTOMOTIVOS;2650.00;Ordem de pagamento emitido para ocorrer despesa com prestação de serviços em horas de serviços em manutenção e reparos na frota do fundo municipal de saúde veículo: S-10 placa: MVT7964, de acordo cpm pregão presencial N° 018/2023. Atendendo a demanda do fundo municipal de saúde deste município . (nf:357).
41268;202400000087;87;0;-;03/04/2024;FUNDO MUNICIPAL DE EDUCAÇÃO FME;FUNDEB 30%;EDUCAÇÃO;ENSINO FUNDAMENTAL;EDUCAÇÃO FUNDAMENTAL - FUNDEB;Manutenção do Ensino Fundamental - FUNDEB 30%;Outros Servicos De Terceiros Pessoa Juridica;H K BARBOSA COMER. E SERVIÇOS AUTOMOTIVOS;7210.00;Ordem de pagamento emitido para ocorrrer despesa com prestação de serviço em manutenção de veículos do transporte escolar deste município de Bernardo Sayão TO. Conforme  ata de registro de preço N° 003/2023 e pregão presencial N°018/2023. (nf:371)
41267;202400000086;86;0;-;03/04/2024;FUNDO MUNICIPAL DE EDUCAÇÃO FME;MDE;EDUCAÇÃO;ADMINISTRAÇÃO GERAL;APOIO AS ATIVIDADES DA SEC. DE EDUCAÇÃO E ENS. SUP.;Manutenção da Secretaria Municipal de Educação;Material Para  Manutencao De Veiculos;H K BARBOSA COMER. E SERVIÇOS AUTOMOTIVOS;1760.00;Ordem de pagamento emitido para ocorrer despesa com aquisição de pneus para reposição em veículos do gabinete do fundo municipal de educação deste município de Bernardo Sayão TO. Conforme pregão presencial N 024/2023,  e ata 003/2023 (nf: 346)
41266;202400000085;85;0;-;03/04/2024;FUNDO MUNICIPAL DE EDUCAÇÃO FME;MDE;EDUCAÇÃO;ADMINISTRAÇÃO GERAL;APOIO AS ATIVIDADES DA SEC. DE EDUCAÇÃO E ENS. SUP.;Manutenção da Secretaria Municipal de Educação;Outros Servicos De Terceiros Pessoa Juridica;H K BARBOSA COMER. E SERVIÇOS AUTOMOTIVOS;1305.00;Ordem de pagamento emitido para ocorrer despesa com  prestação de serviço em manutenção de veículo do gabinete do fundo MUL. de Educação deste município de Bernardo Sayão TO. Conforme ata de registro de preço N°003/2023. pregão presencial 18/2023 (nf: 367)
41317;202400000195;195;0;-;03/04/2024;FUNDO MUNICIPAL DE SAÚDE;Transf de Rec do SUS - PAB Fixo;SAÚDE;ATENÇÃO BÁSICA;ASSISTÊNCIA INTEGRADA A SAÚDE;Bloco de Custeio Atenção Básica;Outros Servicos De Terceiros Pessoa Juridica;H K BARBOSA COMER. E SERVIÇOS AUTOMOTIVOS;5575.00;Ordem de pagamento emitido para ocorrer despesa com prestação de serviços em horas de serviços em manutenção e reparos na frota do fundo municipal de saúde veículo: Ambulância  strada placa: RIN4E01, de acordo cpm pregão presencial N° 018/2023. Atendendo a demanda do fundo municipal de saúde deste município . (nf:359).
41315;202400000193;193;0;-;03/04/2024;FUNDO MUNICIPAL DE SAÚDE;Transf de Rec do SUS - PAB Fixo;SAÚDE;ATENÇÃO BÁSICA;ASSISTÊNCIA INTEGRADA A SAÚDE;Bloco de Custeio Atenção Básica;Outros Servicos De Terceiros Pessoa Juridica;H K BARBOSA COMER. E SERVIÇOS AUTOMOTIVOS;2040.00;Ordem de pagamento emitido para ocorrer despesa com prestação de serviços em horas de serviços em manutenção e reparos na frota do fundo municipal de saúde veículo: Ambulância strada placa: RBN4F57, de acordo cpm pregão presencial N° 018/2023. Atendendo a demanda do fundo municipal de saúde deste município . (nf:356).
41314;202400000192;192;0;-;03/04/2024;FUNDO MUNICIPAL DE SAÚDE;ASPS;SAÚDE;ATENÇÃO BÁSICA;ASSISTÊNCIA INTEGRADA A SAÚDE;Bloco de Custeio Atenção Básica;Outros Servicos De Terceiros Pessoa Juridica;H K BARBOSA COMER. E SERVIÇOS AUTOMOTIVOS;775.00;Ordem de pagamento emitido para ocorrer despesa com prestação de serviços em horas de serviços em manutenção e reparos na frota do fundo municipal de saúde veículo:  Van sprinter placa: QwD6F39, de acordo cpm pregão presencial N° 018/2023. Atendendo a demanda do fundo municipal de saúde deste município . (nf:358).
41311;202400000189;189;0;-;03/04/2024;FUNDO MUNICIPAL DE SAÚDE;ASPS;SAÚDE;ATENÇÃO BÁSICA;ASSISTÊNCIA INTEGRADA A SAÚDE;Bloco de Custeio Atenção Básica;Outros Servicos De Terceiros Pessoa Juridica;H K BARBOSA COMER. E SERVIÇOS AUTOMOTIVOS;2210.00;Ordem de pagamento emitido para ocorrer despesa com prestação de serviços em horas de serviços em manutenção e reparos na frota do fundo municipal de saúde veículo: Ambulância  strada placa: RBN4D87, de acordo cpm pregão presencial N° 018/2023. Atendendo a demanda do fundo municipal de saúde deste município . (nf:355).
41316;202400000194;194;0;-;03/04/2024;FUNDO MUNICIPAL DE SAÚDE;Transf de Rec do SUS - PAB Fixo;SAÚDE;ATENÇÃO BÁSICA;ASSISTÊNCIA INTEGRADA A SAÚDE;Bloco de Custeio Atenção Básica;Outros Servicos De Terceiros Pessoa Juridica;H K BARBOSA COMER. E SERVIÇOS AUTOMOTIVOS;4020.00;Ordem de pagamento emitido para ocorrer despesa com prestação de serviços em horas de serviços em manutenção e reparos na frota do fundo municipal de saúde veículo: Ambulância S-10 strada placa: QKE3618, de acordo com pregão presencial N° 018/2023. Atendendo a demanda do fundo municipal de saúde deste município . (nf:361).
41275;202400000094;94;0;-;03/04/2024;FUNDO MUNICIPAL DE EDUCAÇÃO FME;FUNDEB 30%;EDUCAÇÃO;ENSINO FUNDAMENTAL;EDUCAÇÃO FUNDAMENTAL - FUNDEB;Manutenção do Ensino Fundamental - FUNDEB 30%;Outros Servicos De Terceiros Pessoa Juridica;H K BARBOSA COMER. E SERVIÇOS AUTOMOTIVOS;6270.00;Ordem de pagamento emitido para ocorrer despesa com prestação de serviço em manutenção de veículos do transporte escolar deste município de Bernardo Sayão TO. Conforme  ata de registro de preço N° 003/2023 e pregão presencial N°018/2023. (nf:364)
41274;202400000093;93;0;-;03/04/2024;FUNDO MUNICIPAL DE EDUCAÇÃO FME;FUNDEB 30%;EDUCAÇÃO;ENSINO FUNDAMENTAL;EDUCAÇÃO FUNDAMENTAL - FUNDEB;Manutenção do Ensino Fundamental - FUNDEB 30%;Outros Servicos De Terceiros Pessoa Juridica;H K BARBOSA COMER. E SERVIÇOS AUTOMOTIVOS;5950.00;Ordem de pagamento emitido para ocorrer despesa com prestação de serviço em manutenção de veículos do transporte escolar deste município de Bernardo Sayão TO. Conforme  ata de registro de preço N° 003/2023 e pregão presencial N°018/2023. (nf:365)
41273;202400000092;92;0;-;03/04/2024;FUNDO MUNICIPAL DE EDUCAÇÃO FME;FUNDEB 30%;EDUCAÇÃO;ENSINO FUNDAMENTAL;EDUCAÇÃO FUNDAMENTAL - FUNDEB;Manutenção do Ensino Fundamental - FUNDEB 30%;Outros Servicos De Terceiros Pessoa Juridica;H K BARBOSA COMER. E SERVIÇOS AUTOMOTIVOS;1085.00;Ordem de pagamento emitido para ocorrer despesa com prestação de serviço em manutenção de veículos do transporte escolar deste município de Bernardo Sayão TO. Conforme  ata de registro de preço N° 003/2023 e pregão presencial N°018/2023. (nf:368)
41272;202400000091;91;0;-;03/04/2024;FUNDO MUNICIPAL DE EDUCAÇÃO FME;FUNDEB 30%;EDUCAÇÃO;ENSINO FUNDAMENTAL;EDUCAÇÃO FUNDAMENTAL - FUNDEB;Manutenção do Ensino Fundamental - FUNDEB 30%;Outros Servicos De Terceiros Pessoa Juridica;H K BARBOSA COMER. E SERVIÇOS AUTOMOTIVOS;2090.00;Ordem de pagamento emitido para ocorrer despesa com prestação de serviço em manutenção de veículos do transporte escolar deste município de Bernardo Sayão TO. Conforme  ata de registro de preço N° 003/2023 e pregão presencial N°018/2023. (nf:369)
41271;202400000090;90;0;-;03/04/2024;FUNDO MUNICIPAL DE EDUCAÇÃO FME;FUNDEB 30%;EDUCAÇÃO;ENSINO FUNDAMENTAL;EDUCAÇÃO FUNDAMENTAL - FUNDEB;Manutenção do Ensino Fundamental - FUNDEB 30%;Outros Servicos De Terceiros Pessoa Juridica;H K BARBOSA COMER. E SERVIÇOS AUTOMOTIVOS;8330.00;Ordem de pagamento emitido para ocorrer despesa com prestação de serviço em manutenção de veículos do transporte escolar deste município de Bernardo Sayão TO. Conforme  ata de registro de preço N° 003/2023 e pregão presencial N°018/2023. (nf:366)
41270;202400000089;89;0;-;03/04/2024;FUNDO MUNICIPAL DE EDUCAÇÃO FME;FUNDEB 30%;EDUCAÇÃO;ENSINO FUNDAMENTAL;EDUCAÇÃO FUNDAMENTAL - FUNDEB;Manutenção do Ensino Fundamental - FUNDEB 30%;Outros Servicos De Terceiros Pessoa Juridica;H K BARBOSA COMER. E SERVIÇOS AUTOMOTIVOS;3995.00;Ordem de pagamento emitido para ocorrer despesa com prestação de serviço em manutenção de veículos do transporte escolar deste município de Bernardo Sayão TO. Conforme  ata de registro de preço N° 003/2023 e pregão presencial N°018/2023. (nf:363)
41269;202400000088;88;0;-;03/04/2024;FUNDO MUNICIPAL DE EDUCAÇÃO FME;FUNDEB 30%;EDUCAÇÃO;ENSINO FUNDAMENTAL;EDUCAÇÃO FUNDAMENTAL - FUNDEB;Manutenção do Ensino Fundamental - FUNDEB 30%;Outros Servicos De Terceiros Pessoa Juridica;H K BARBOSA COMER. E SERVIÇOS AUTOMOTIVOS;5640.00;Ordem de pagamento emitido para ocorrer despesa com prestação de serviço em manutenção de veículos do transporte escolar deste município de Bernardo Sayão TO. Conforme  ata de registro de preço N° 003/2023 e pregão presencial N°018/2023. (nf:370)
41254;202400000176;176;0;-;03/04/2024;FUNDO MUNICIPAL DE SAÚDE;Transf de Rec do SUS - PAB Fixo;SAÚDE;ATENÇÃO BÁSICA;ASSISTÊNCIA INTEGRADA A SAÚDE;Bloco de Custeio Atenção Básica;Serviços Médicos;L. A SILVA NASCIMENTO;52800.00;Ordem de pagamento emitido para ocorrer despesas de prestação de serviços de 02 médicos para atendimento a população de Bernardo Sayão-TO zona urbana e zona rural, atendendo a demanda do Fundo Municipal de Saúde de Bernardo Sayão-TO, conforme pregão presencial FMS N° 010/2023, Referente a 10° parcela. (nf:37864).
41363;202400000101;101;0;-;03/04/2024;FUNDO MUNICIPAL DE EDUCAÇÃO FME;FUNDEB 30%;EDUCAÇÃO;ENSINO FUNDAMENTAL;EDUCAÇÃO FUNDAMENTAL - FUNDEB;Manutenção do Ensino Fundamental - FUNDEB 30%;Diesel;SOUSA & LOPES COMERCIO DE COMBUSTIVEIS LTDA;11907.41;Ordem de pagamento emitido para ocorrer despesa com aquisição de diesel para manutenção de veiculo do transporte escolar deste município de Bernardo sayão TO. Conforme  processo N003/2024 e contrato N° 023/2024 e processo ADM. N° 017/2024 e inexibilidade de licitação N 003/2024. (nf:10187)
41304;202400000182;182;0;-;03/04/2024;FUNDO MUNICIPAL DE SAÚDE;ASPS;SAÚDE;ATENÇÃO BÁSICA;ASSISTÊNCIA INTEGRADA A SAÚDE;Bloco de Custeio Atenção Básica;Combustiveis E Lubrif.Para  Outras Finalidades;SOUSA & LOPES COMERCIO DE COMBUSTIVEIS LTDA;168.00;Ordem de pagamento emitido para ocorrer despesa com aquisição de lubrificantes para frota do fundo municipal de saúde:  L-200 triton placa: QKM1934, Sandero placa: QKG5J21 e Ambulancia strada placa: RBN4F57. Conforme processo de inexigibilidade N° 003/2024. Atendendo a demanda do fundo municipal de saúde de Bernardo Sayão-TO. (nf:10189).
41366;202400000104;104;0;-;03/04/2024;FUNDO MUNICIPAL DE EDUCAÇÃO FME;MDE;EDUCAÇÃO;ENSINO FUNDAMENTAL;EDUCAÇÃO FUNDAMENTAL,  INFANTIL E MÉDIO;Manutenção do Transporte Escolar;Combustiveis E Lubrif.Para  Outras Finalidades;SOUSA & LOPES COMERCIO DE COMBUSTIVEIS LTDA;2186.00;Ordem de pagamento emitido para ocorrer despesa com aquisição de lubrificantes para manutenção de veiculo do transporte escolar deste município de Bernardo sayão TO. Conforme contrato N° 023/2024 e inexibilidade de licitação N 003/2024. (nf:10188)
41318;202400000196;196;0;-;03/04/2024;FUNDO MUNICIPAL DE SAÚDE;Transf de Rec do SUS - PAB Fixo;SAÚDE;SUPORTE PROFILÁTICO E TERAPÊUTICO;ASSISTÊNCIA INTEGRADA A SAÚDE;Bloco de Custeio Assistência Farmacêutica Básica;Material Farmacologico;VIA FHARMA DO BRASIL;683.40;Ordem de pagamento emitido para ocorrer despesa com aquisição de medicamento como levotiroxina, macrodantina e metoprolol. Para atender a demanda da farmácia básica do fundo municipal de saúde de Bernardo Sayão-TO. (nf:35.920).
41255;202400000177;177;0;-;02/04/2024;FUNDO MUNICIPAL DE SAÚDE;ASPS;SAÚDE;ADMINISTRAÇÃO GERAL;ASSISTÊNCIA INTEGRADA A SAÚDE;Bloco de Custeio Gestão do SUS no Âmbito Municipal;Servicos De Publicidade De Utilidade Publica;ARYELTON ALEXANDRE QUEIROZ;840.00;Ordem de pagamento emitido para ocorrer despesa com prestação de serviço em propaganda veicular para anúncio do programa bolsa família, campanha de vacinação antirrábica na zona urbana e rural e informativo para atualização do programa bolsa família. Atendendo a demanda do fundo municipal de saúde deste município. (nf:8).
41210;202400000077;77;0;-;02/04/2024;FUNDO MUNICIPAL DE EDUCAÇÃO FME;MDE;EDUCAÇÃO;ENSINO FUNDAMENTAL;EDUCAÇÃO FUNDAMENTAL,  INFANTIL E MÉDIO;Manutenção do Ensino Fundamental;Outros Servicos De Terceiros Pessoa Juridica;CONS. REG. DE ENG. ARQ. E AGRONOMIA DO ESTADO TO.;99.64;Ordem de pagamento emitido para ocorrer despesa com pagamento de A.R.T para pintura e manutenção de telhado da escola e quadra municipal Criança feliz neste município de Bernardo Sayão TO.
41201;202400000176;176;0;-;02/04/2024;SECRETARIA DE ADMINISTRAÇAO;RECURSOS PROPRIOS;ADMINISTRAÇÃO;ADMINISTRAÇÃO GERAL;Manutenção da Sec.de Transportes;Manutenção da Secretaria Municipal de Administração;Outros Servicos De Terceiros Pessoa Juridica;CONS. REG. DE ENG. ARQ. E AGRONOMIA DO ESTADO TO.;99.64;Ordem de pagamento emitido para ocorrer despesa com pagamento de ART referente a reforma do predio da prefeitura municipal, nesta cidade de Bernardo Sayão-TO.
41246;202400000082;82;0;-;02/04/2024;FUNDO MUNICIPAL DE EDUCAÇÃO FME;FUNDEB 30%;EDUCAÇÃO;ENSINO FUNDAMENTAL;EDUCAÇÃO FUNDAMENTAL - FUNDEB;Manutenção do Ensino Fundamental - FUNDEB 30%;Outros Servicos De Terceiros Pessoa Juridica;E. R. C. DA SILVA;56531.46;Ordem de pagamento emitido para ocorrer despesa com prestação de serviço no transporte de alunos do setor Trans Colinas e terra grande para a ESC. MUL. Tancredo de A. Neves na vila PA Providencia. Setor jardim e zé preto, Para Esc.MUL. Criança Feliz  e colégio Estadual Bernardo Sayão. Faz. Santa Helena para ESC. MUL. EVERTON de A. Junior neste município de Bernardo Sayão TO. Conforme pregão Eletrônico N° 001/2024 e Contrato N° 037/2024. (nf:205).
41247;202400000083;83;0;-;02/04/2024;FUNDO MUNICIPAL DE EDUCAÇÃO FME;FUNDEB 30%;EDUCAÇÃO;ENSINO FUNDAMENTAL;EDUCAÇÃO FUNDAMENTAL - FUNDEB;Manutenção do Ensino Fundamental - FUNDEB 30%;Outros Servicos De Terceiros Pessoa Juridica;E. R. C. DA SILVA;38920.14;Ordem de pagamento emitido para ocorrer despesa com prestação de serviço no transporte de alunos do setor vila Aroeira, para o colégio Estadual Bernardo Sayão, neste município de Berrnardo Sayão TO. Conforme pregão eletrônico N° 001/2024 e contrato  N° 037/2024. (nf:206).
41264;202400000037;37;0;-;02/04/2024;MANUT. FUNDO ASSISTÊNCIA SOCIAL;RECURSOS PROPRIOS;ASSISTÊNCIA SOCIAL;ASSISTÊNCIA COMUNITÁRIA;ASSISTÊNCIA AS COMUNIDADES;Aprimoramento da Organização e Gestão do SUAS;Servicos De Publicidade Legal;IMPRENSA NACIONAL;233.52;Ordem de pagamento emitido para ocorrer despesa com aviso de pregão eletronico 012/2024.
41468;202400000220;220;0;-;02/04/2024;CULTURA;RECURSOS PROPRIOS;URBANISMO;ENERGIA ELÉTRICA;VIAS, PRAÇAS, JARDINS, SERV. URB. TRANSP E ESTR. VIC;Manutenção dos Serviços de Iluminação Pública;Outros Servicos De Terceiros Pessoa Juridica;INFOR + EMPREENDIMENTOS LTDA;8925.00;Ordem de pagamento emitido para ocorrer despesa com serviço de caminhão munck para manutenção e reparo da iluminação publica e transporte de bueiros, e demais necessidades da Secretaria de Infraestrutura e Obras tanto na zona urbana e rural neste município de Bernardo Sayão-TO. Conforme Ata de registro de preço N° 008/2023. Referente o mês de março.
41252;202400000027;27;1272;-;02/04/2024;FUNDO MUNICIPAL DE SAÚDE;ASPS;SAÚDE;ADMINISTRAÇÃO GERAL;ASSISTÊNCIA INTEGRADA A SAÚDE;Bloco de Custeio Gestão do SUS no Âmbito Municipal;Outros Servicos De Terceiros Pessoa Juridica;ITALO R. DA SILVA PEREIRA ME;1140.00;Ordem de pagamento emitido para ocorrer despesa com empresa para prestação de serviços de hospedagem na nuvem do sistema ESUS e ferramentas de monitoramento e cálculo de indicadores, conforme contrato N° 16/2024, atendendo a demanda do Fundo municipal de Saúde de Bernardo Sayão-TO. Referente a março de 2024.
41245;202400000081;81;0;-;02/04/2024;FUNDO MUNICIPAL DE EDUCAÇÃO FME;FUNDEB 30%;EDUCAÇÃO;ENSINO FUNDAMENTAL;EDUCAÇÃO FUNDAMENTAL - FUNDEB;Manutenção do Ensino Fundamental - FUNDEB 30%;Outros Servicos De Terceiros Pessoa Juridica;JAQUELINE RAFAELA SILVA ARAÚJO;13760.00;Ordem de pagamento emitido para ocorrer despesa com  locação de veiculo do transporte de alunos do setor gleba M, ASS. Santa Helena  e setor baixão para a escola MUL. Criança Feliz e colégio Estadual Bernardo Sayão neste município  de Bernardo Sayão TO, Conforme pregão eletrônico N° 001/2024  e contrato N° 036/2024.
41243;202400000079;79;0;-;02/04/2024;FUNDO MUNICIPAL DE EDUCAÇÃO FME;MDE;EDUCAÇÃO;ENSINO FUNDAMENTAL;EDUCAÇÃO FUNDAMENTAL,  INFANTIL E MÉDIO;Manutenção do Transporte Escolar;Outros Servicos De Terceiros Pessoa Juridica;JAQUELINE RAFAELA SILVA ARAÚJO;3941.28;Ordem de pagamento emitido para ocorrer despesa com locação de veiculo para o transporte de professores de Bernardo Sayão a escola MUL. Tancredo de Almeida Neves no PA Providencia neste município de Bernardo Sayão TO. Conforme pregão eletrônico N001//2024 e contrato N036/2024. (nf:104).
41477;202400000109;109;0;-;02/04/2024;FUNDO MUNICIPAL DE EDUCAÇÃO FME;Transf Diretas do FNDE - PNAE;EDUCAÇÃO;ALIMENTAÇÃO E NUTRIÇÃO;ALIMENTAÇÃO ESCOLAR;Manutenção da Merenda Escolar;Generos De Alimentacao;MELO DISTRIBUIDORA DE ALIMENTOS LTDA;1180.96;Ordem de pagamento emitido para ocorrer despesa com aquisição de gênero alimentício para compor a merenda escolar nas escolas municipais deste município de Bernardo Sayão TO, conforme pregão eletrônico N° 002/2024 e contrato N° 0045/2024. (nf:208).
41302;202400000180;180;0;-;02/04/2024;FUNDO MUNICIPAL DE SAÚDE;ASPS;SAÚDE;ATENÇÃO BÁSICA;ASSISTÊNCIA INTEGRADA A SAÚDE;Bloco de Custeio Atenção Básica;Diesel;SOUSA & LOPES COMERCIO DE COMBUSTIVEIS LTDA;231.96;Ordem de pagamento emitido para ocorrer despesa com aquisição de combustível para frota do fundo municipal de saúde: S-10 placa: MVT7964. Conforme processo de inexigibilidade N° 003/2024. Atendendo a demanda do fundo municipal de saúde de Bernardo Sayão-TO. (nf:10182).
41310;202400000188;188;0;-;02/04/2024;FUNDO MUNICIPAL DE SAÚDE;Transf de Rec do SUS - PAB Fixo;SAÚDE;ATENÇÃO BÁSICA;ASSISTÊNCIA INTEGRADA A SAÚDE;Bloco de Custeio Atenção Básica;Diesel;SOUSA & LOPES COMERCIO DE COMBUSTIVEIS LTDA;4917.78;Ordem de pagamento emitido para ocorrer despesa com aquisição de combustível para frota do fundo municipal de saúde: Van sprinter placa: QWD6F39. Conforme processo de inexigibilidade N° 003/2024. Atendendo a demanda do fundo municipal de saúde de Bernardo Sayão-TO. (nf:10183).
41309;202400000187;187;0;-;02/04/2024;FUNDO MUNICIPAL DE SAÚDE;Transf de Rec do SUS - PAB Fixo;SAÚDE;ATENÇÃO BÁSICA;ASSISTÊNCIA INTEGRADA A SAÚDE;Bloco de Custeio Atenção Básica;Diesel;SOUSA & LOPES COMERCIO DE COMBUSTIVEIS LTDA;5633.15;Ordem de pagamento emitido para ocorrer despesa com aquisição de combustível para frota do fundo municipal de saúde: L-200 triton placa: QKM1934. Conforme processo de inexigibilidade N° 003/2024. Atendendo a demanda do fundo municipal de saúde de Bernardo Sayão-TO. (nf:10181).
41308;202400000186;186;0;-;02/04/2024;FUNDO MUNICIPAL DE SAÚDE;Transf de Rec do SUS - PAB Fixo;SAÚDE;ATENÇÃO BÁSICA;ASSISTÊNCIA INTEGRADA A SAÚDE;Bloco de Custeio Atenção Básica;Gasolina;SOUSA & LOPES COMERCIO DE COMBUSTIVEIS LTDA;3838.57;Ordem de pagamento emitido para ocorrer despesa com aquisição de combustível para frota do fundo municipal de saúde: Ambulância strada  placa: RIN4E01. Conforme processo de inexigibilidade N° 003/2024. Atendendo a demanda do fundo municipal de saúde de Bernardo Sayão-TO. (nf:10178).
41307;202400000185;185;0;-;02/04/2024;FUNDO MUNICIPAL DE SAÚDE;Transf de Rec do SUS - PAB Fixo;SAÚDE;ATENÇÃO BÁSICA;ASSISTÊNCIA INTEGRADA A SAÚDE;Bloco de Custeio Atenção Básica;Gasolina;SOUSA & LOPES COMERCIO DE COMBUSTIVEIS LTDA;2418.34;Ordem de pagamento emitido para ocorrer despesa com aquisição de combustível para frota do fundo municipal de saúde: Ambulância strada placa: RBN4F57. Conforme processo de inexigibilidade N° 003/2024. Atendendo a demanda do fundo municipal de saúde de Bernardo Sayão-TO. (nf:10179).
41306;202400000184;184;0;-;02/04/2024;FUNDO MUNICIPAL DE SAÚDE;Transf de Rec do SUS - PAB Fixo;SAÚDE;ATENÇÃO BÁSICA;ASSISTÊNCIA INTEGRADA A SAÚDE;Bloco de Custeio Atenção Básica;Diesel;SOUSA & LOPES COMERCIO DE COMBUSTIVEIS LTDA;5597.60;Ordem de pagamento emitido para ocorrer despesa com aquisição de combustível para frota do fundo municipal de saúde: Ambulância S-10 placa:RSD0I06. Conforme processo de inexigibilidade N° 003/2024. Atendendo a demanda do fundo municipal de saúde de Bernardo Sayão-TO. (nf:10176).
41305;202400000183;183;0;-;02/04/2024;FUNDO MUNICIPAL DE SAÚDE;Transf de Rec do SUS - PAB Fixo;SAÚDE;ATENÇÃO BÁSICA;ASSISTÊNCIA INTEGRADA A SAÚDE;Bloco de Custeio Atenção Básica;Gasolina;SOUSA & LOPES COMERCIO DE COMBUSTIVEIS LTDA;4658.06;Ordem de pagamento emitido para ocorrer despesa com aquisição de combustíveis para frota do fundo municipal de saúde: Ambulância strada placa: RBN4D87, Sandeiro placa: QKH 4686. Conforme processo de inexigibilidade N° 003/2024. Atendendo a demanda do fundo municipal de saúde de Bernardo Sayão-TO. (nf:10177).
41303;202400000181;181;0;-;02/04/2024;FUNDO MUNICIPAL DE SAÚDE;ASPS;SAÚDE;ATENÇÃO BÁSICA;ASSISTÊNCIA INTEGRADA A SAÚDE;Bloco de Custeio Atenção Básica;Gasolina;SOUSA & LOPES COMERCIO DE COMBUSTIVEIS LTDA;1078.22;Ordem de pagamento emitido para ocorrer despesa com aquisição de combustível para frota do fundo municipal de saúde: Ambulância strada placa: RBN4D87. Conforme processo de inexigibilidade N° 003/2024. Atendendo a demanda do fundo municipal de saúde de Bernardo Sayão-TO. (nf:10180).
41364;202400000102;102;0;-;02/04/2024;FUNDO MUNICIPAL DE EDUCAÇÃO FME;MDE;EDUCAÇÃO;ADMINISTRAÇÃO GERAL;APOIO AS ATIVIDADES DA SEC. DE EDUCAÇÃO E ENS. SUP.;Manutenção da Secretaria Municipal de Educação;Gasolina;SOUSA & LOPES COMERCIO DE COMBUSTIVEIS LTDA;5047.32;Ordem de pagamento emitido para ocorrer despesa com aquisição de gasolina para manutenção de veiculo do gabinete do fundo municipal de educação deste município de Bernardo sayão TO. Conforme contrato N° 023/2024, inexibilidade de licitação N 003/2024. (nf: 10175)
41365;202400000103;103;0;-;02/04/2024;FUNDO MUNICIPAL DE EDUCAÇÃO FME;FUNDEB 30%;EDUCAÇÃO;ENSINO FUNDAMENTAL;EDUCAÇÃO FUNDAMENTAL - FUNDEB;Manutenção do Ensino Fundamental - FUNDEB 30%;Diesel;SOUSA & LOPES COMERCIO DE COMBUSTIVEIS LTDA;8879.12;Ordem de pagamento emitido para ocorrer despesa com aquisição de diesel  para manutenção de veiculo do transporte escolar deste município de Bernardo sayão TO. Conforme contrato N° 023/2024 e inexibilidade de licitação N 003/2024. (nf: 10173)
41482;202400000222;222;0;-;02/04/2024;SECRETARIA DE EDUCACAO, CULTURA E ESPORTE;RECURSOS PROPRIOS;AGRICULTURA;ABASTECIMENTO;Apoio à Agricultura e Pecuária em geral;Manutenção da Secretaria Municipal de Agricultura;Material Para  Manutencao De Veiculos;TOP 10 PNEUS MICHELIN TLDA-ME;3580.00;Ordem de pagamento emitido para ocorrer despesa com aquisição de pneus para reposição em veiculo ônibus placa: ADH-8820 da secretaria Municipal de Agricultura deste município de Bernardo Sayão-TO 2024. conforme ata de registro de preço N° 005/2023 (nf:8.412).
41248;202400000178;178;0;-;01/04/2024;CULTURA;RECURSOS PROPRIOS;URBANISMO;SERVIÇOS URBANOS;VIAS, PRAÇAS, JARDINS, SERV. URB. TRANSP E ESTR. VIC;Manutenção da Secretaria Municipal de Habitação, Infraestrutura e Obras;Outros Servicos De Terceiros Pessoa Juridica;ALIS SILVA LEITE;16500.00;Ordem de pagamento emitido para ocorrer despesa com prestação de serviço de locação de um caminhão Truk com prancha de 9,50 mts e com rampa para transporte de maquinas pesadas da secretaria municipal de habitação, infraestrutura e obras deste município de Bernardo Sayão-TO. Conforme ata de registro de preço pregão N° 015/2023. referente a março de 2024.
41370;202400000134;134;1475;-;01/04/2024;FUNDEB;RECURSOS PROPRIOS;GESTÃO AMBIENTAL;PRESERVAÇÃO  E CONSERVAÇÃO  AMBIENTAL;Proteção ao Meio Ambiente;Manutenção da Secretaria Municipal de Meio Ambiente;Outros Servicos De Terceiros Pessoa Juridica;BIOTEC TRATAMENTOS E DISPOSIÇÃO DE RESIDUOS PERIGOSOS LTDA EPP;3500.00;Ordem de pagamento emitido para ocorrer despesa com contratação de empresa especializada no tratamento de resíduos hospitalares para prestação de serviço de coleta de lixo hospitalar no anexo I e posto de Saúde, para atender a demanda do Fundo Municipal de Saúde de Bernardo Sayão-TO, durante de exercício de 2024.
41435;202400000039;39;1506;-;01/04/2024;SECRETARIA DE ADMINISTRAÇAO;RECURSOS PROPRIOS;ADMINISTRAÇÃO;ADMINISTRAÇÃO GERAL;Manutenção da Sec.de Transportes;Manutenção da Secretaria Municipal de Administração;Outros Servicos De Terceiros Pessoa Juridica;DATTA SYSTEM TECNOLOGIA LTDA;4680.00;Ordem de pagamento emitido para ocorrer despesa com contratação de empresa para a Implantação e prestação e serviços de locação e softwares que atendam legislações específicas treinamentos de todos os funcionarios na utilização dos sistemas locados e o suporte e manutenção destes sistemas, os sistemas locados devem atender as seguintres áreas: Contabilidade pública e financeiro,controle de orçamento: PPA, LDO, LOA e arrecadação de tributos, IPTU e certidão negativa  para atender as necessidades das unidades administrativas deste município de Bernardo Sayão-TO. Referente a março de 2024.
41226;202400000055;55;1247;-;01/04/2024;FUNDO MUNICIPAL DE SAÚDE;ASPS;SAÚDE;ATENÇÃO BÁSICA;ASSISTÊNCIA INTEGRADA A SAÚDE;Bloco de Custeio Atenção Básica;Fornecimento De Alimentacao;ELIENE ALVES FEITOSA;880.00;Ordem de pagamento emitido para ocorrer despesa com prestação de serviço no fornecimento de refeições (marmitex), conforme contrato N° 014/2024 e homologação do resultado do pregão presencial N° 020/2023, para atender a demanda do fundo municipal de saúde de Bernardo Sayão-TO.
41257;202400000179;179;0;-;01/04/2024;FUNDO MUNICIPAL DE SAÚDE;ASPS;SAÚDE;ADMINISTRAÇÃO GERAL;ASSISTÊNCIA INTEGRADA A SAÚDE;Bloco de Custeio Gestão do SUS no Âmbito Municipal;Servicos De Publicidade Legal;IMPRENSA NACIONAL;233.52;Ordem de pagamento emitido para ocorrer despesa com Prestação de serviços referente a publicação do ofício 10247769 enviado em 01/04/2024. Para atender  a demanda do Fundo Municipal de Saúde deste Municipio de Bernardo Sayão-TO.
41189;202400000174;174;0;-;01/04/2024;SECRETARIA DE ADMINISTRAÇAO;RECURSOS PROPRIOS;ADMINISTRAÇÃO;ADMINISTRAÇÃO GERAL;Manutenção da Sec.de Transportes;Manutenção da Secretaria Municipal de Administração;Servicos De Publicidade Legal;IMPRENSA NACIONAL;233.52;Ordem de pagamento emitido para ocorrer despesa com aviso de pregão eletrônico 010/2024 do tipo menor preço. Contratação de empresa para futura e eventual aquisição de materiais eletricos para reparos e manutenção da iluminação publica, prédios, praças, quadras poliesportivas publicas, em todo município de Bernardo Sayão-TO.
41190;202400000175;175;0;-;01/04/2024;SECRETARIA DE ADMINISTRAÇAO;RECURSOS PROPRIOS;ADMINISTRAÇÃO;ADMINISTRAÇÃO GERAL;Manutenção da Sec.de Transportes;Manutenção da Secretaria Municipal de Administração;Servicos De Publicidade Legal;IMPRENSA NACIONAL;233.52;Ordem de pagamento emitido para ocorrer despesa com aviso de pregão eletrônico 009/2024 do tipo menor preço. Contratação de empresa para  eventual e futuro fornecimento de ferramentas e materiais de segurança individual, para atender as necessidades das unidades administrativas deste Município de Bernardo Sayão-TO.
41241;202400000175;175;0;-;01/04/2024;FUNDO MUNICIPAL DE SAÚDE;ASPS;SAÚDE;ADMINISTRAÇÃO GERAL;ASSISTÊNCIA INTEGRADA A SAÚDE;Bloco de Custeio Gestão do SUS no Âmbito Municipal;Outros Materiais De Consumo;IRANILTON ALENCAR ALEXANDRE JUNIOR LTDA;11145.00;"Ordem de pagamento emitido para ocorrer despesa com aquisição de materiais de consumo gráficos, tais como; prontuário, ficha de atendimento domiciliar e envelopes. Para atender a demanda do Fundo Municipal de Saúde deste Municipio de Bernardo Sayão-TO. ( Nfe: 711)."
41391;202400000202;202;0;-;01/04/2024;SECRETARIA DE ADMINISTRAÇAO;RECURSOS PROPRIOS;ADMINISTRAÇÃO;ADMINISTRAÇÃO GERAL;Manutenção da Sec.de Transportes;Manutenção da Secretaria Municipal de Administração;Material De Limpeza E Produtos  De Higienizacao;L F M ALBUQUERQUE;284.20;Ordem de pagamento emitido para ocorrer despesa com aquisição de materiais de limpeza para atender as necessidades das unidades Administrativas deste município de Bernardo Sayão-TO. Conforme ata de registro de preço N° 003/2023. (nf:863).
41436;202400000047;47;1508;-;01/04/2024;SECRETARIA DE ADMINISTRAÇAO;RECURSOS PROPRIOS;ADMINISTRAÇÃO;ADMINISTRAÇÃO GERAL;Manutenção da Sec.de Transportes;Manutenção da Secretaria Municipal de Administração;Outros Servicos Tecnicos Profissionais;L.S. AMORIM - ME;8500.00;Ordem de pagamento emitido para ocorrer despesa com contratação de empresa para a prestação de serviços técnicos especializados na área de assessoria em serviços de engenharia civil, para fiscalização, acompanhamento, análise técnicas, vistorias de obras, para suprir as necessidades do município de Bernardo Sayão-TO. Referente a março de 2024.
41450;202400000122;122;1512;-;01/04/2024;CULTURA;RECURSOS PROPRIOS;URBANISMO;SERVIÇOS URBANOS;VIAS, PRAÇAS, JARDINS, SERV. URB. TRANSP E ESTR. VIC;Manutenção da Secretaria Municipal de Habitação, Infraestrutura e Obras;Generos De Alimentacao;MARIA HELENA PEREIRA DA CRUZ;2901.75;Ordem de pagamento emitido para ocorrer despesa com contratação de empresa para a aquisição de pão francês e pão de queijo, para atender as necessidades da Secretaria Municipal de Habitação, infraestrutura e Obras deste Município de Bernardo Sayão-TO. Referente a março de 2024.
41437;202400000052;52;1510;-;01/04/2024;SECRETARIA DE ADMINISTRAÇAO;RECURSOS PROPRIOS;ADMINISTRAÇÃO;ADMINISTRAÇÃO GERAL;Manutenção da Sec.de Transportes;Manutenção da Secretaria Municipal de Administração;Outros Servicos Tecnicos Profissionais;NILTON ENIO BERLANDA-ME;3100.00;Ordem de pagamento emitido para ocorrer despesa com prestação de serviços profissionais  especializados no Assessoramento, gestão de convênios junto aos repasses de recursos da administração Direita e esquerda do governo federal, sistema da plataforma transferegov.br governo estadual, sistema transfere.to, os serviços tem como objetivo o gerenciamento e o cumprimento dos procedimentos referentes a elaboração de cadastramento do sistemas, execução, monitoramento e prestação de contas dos recursos destinados ao município de Bernardo Sayão-TO, Referente a março de 2024.
41251;202400000015;15;1291;-;01/04/2024;FUNDO MUNICIPAL DE SAÚDE;ASPS;SAÚDE;ATENÇÃO BÁSICA;ASSISTÊNCIA INTEGRADA A SAÚDE;Bloco de Custeio Atenção Básica;Outros Servicos De Terceiros Pessoa Juridica;OI S.A.;602.29;Ordem de pagamento emitido  para ocorrer despesa com prestação de serviço de telecomunicação onde funciona o prédio do Anexo I, atendendo as necessidades do Fundo Municipal de Saúde deste Municipio de Bernardo Sayão-TO, 3422-1115. Referente a março de 2024.
41211;202400000046;46;1232;-;01/04/2024;SECRETARIA DE ADMINISTRAÇAO;RECURSOS PROPRIOS;ADMINISTRAÇÃO;ADMINISTRAÇÃO GERAL;Manutenção da Sec.de Transportes;Manutenção da Secretaria Municipal de Administração;Outros Servicos De Terceiros Pessoa Juridica;OI S.A.;640.33;Ordem de pagamento emitido para ocorrer despesa com prestação de serviços de telecomunicação. Atendendo as necessidades do Fundo Municipal de Administração deste Municipio de Bernardo Sayão-TO. (3422-1241) Referente a março de 2024.
41250;202400000014;14;1289;-;01/04/2024;FUNDO MUNICIPAL DE SAÚDE;ASPS;SAÚDE;ATENÇÃO BÁSICA;ASSISTÊNCIA INTEGRADA A SAÚDE;Bloco de Custeio Atenção Básica;Outros Servicos De Terceiros Pessoa Juridica;OI S.A.;214.09;Ordem de pagamento emitido para ocorrer despesa com prestação de serviço de telecomunicação na Unidade Básica de Saúde, atendendo a demanda do Fundo Municipal de Saúde deste Municipio de Bernardo Sayão-TO, durante o exercício de 2024, 3422-1164. Referente a março de 2024.
41249;202400000013;13;1287;-;01/04/2024;FUNDO MUNICIPAL DE SAÚDE;ASPS;SAÚDE;ADMINISTRAÇÃO GERAL;ASSISTÊNCIA INTEGRADA A SAÚDE;Bloco de Custeio Gestão do SUS no Âmbito Municipal;Outros Servicos De Terceiros Pessoa Juridica;OI S.A.;602.45;Ordem de pagamento emitido para ocorrer despesa com prestação de serviço de telecomunicação para a Secretaria Municipal de Saúde, atendendo as necessidades do Fundo Municipal de Saúde deste Municipio de Bernardo Sayão-TO,  3422-1210. Referente a março de 2024.
41301;202400000117;117;1325;-;01/04/2024;FUNDO MUNICIPAL DE SAÚDE;ASPS;SAÚDE;ATENÇÃO BÁSICA;ASSISTÊNCIA INTEGRADA A SAÚDE;Bloco de Custeio Atenção Básica;Outros Servicos De Terceiros Pessoa Juridica;SAMUEL RICARDO NONATO DA SILVA;10000.78;Ordem de pagamento emitido para ocorrer despesa cm contratação de empresa para execução de serviços de mão de obra de pintura interior e exterior dos prédios públicos, conforme as planilhas orçamentárias referenciais, a serem executados nos prédios públicos pertencentes ao fundo municipal de saúde deste município, sendo as unidades básica de saúde josé dos Santos Alves, secretaria municipal de saúde Anexo 1, laboratório de analises, posto de saúde vila p.a Providência, posto de saúde da vila Tancredo neves, posto de saúde da vila União. Conforme contrato N° 047/2024.
